fUSD/lending_fUSD_20260129
["ID","MTS","AMOUNT","RATE_DAILY","PERIOD"]
[403959128,1769693443284,-547.0,0.00017584,2]
[403959130,1769693443293,-150.0,0.00017584,2]
[403959132,1769693443302,-150.0,0.00017584,2]
[403959133,1769693443312,-500.0,0.00017584,2]
[403959135,1769693443321,-21194.91362864,0.00017584,2]
[403959137,1769693443330,-155.08275529,0.00017589,2]
[403959139,1769693443340,-150.0,0.00017589,2]
[403959141,1769693443349,-150.0,0.00017589,2]
[403959143,1769693443358,-150.0,0.00017589,2]
[403959145,1769693443367,-150.0,0.00017589,2]
[403959147,1769693443382,-150.0,0.00017589,2]
[403959149,1769693443391,-500.0,0.00017589,2]
[403959151,1769693443400,-150.0,0.00017589,2]
[403959153,1769693443409,-150.0,0.00017589,2]
[403959155,1769693443418,-150.0,0.00017589,2]
[403959157,1769693443429,-165.72537453,0.00017589,2]
[403959159,1769693443438,-150.0,0.00017589,2]
[403959161,1769693443447,-150.0,0.00017589,2]
[403959163,1769693443457,-150.0,0.00017589,2]
[403959165,1769693443466,-150.0,0.00017589,2]
[403959167,1769693443475,-500.0,0.00017589,2]
[403959169,1769693443484,-150.0,0.00017589,2]
[403959171,1769693443492,-150.0,0.00017589,2]
[403959173,1769693443501,-150.0,0.00017589,2]
[403959175,1769693443511,-500.0,0.00017589,2]
[403959177,1769693443520,-153.23607155,0.00017589,2]
[403959179,1769693443529,-150.89317247,0.00017589,2]
[403959181,1769693443538,-151.38299639,0.00017589,2]
[403959183,1769693443547,-150.94007099,0.00017589,2]
[403959185,1769693443556,-500.0,0.00017589,2]
[403959187,1769693443566,-150.0,0.00017589,2]
[403959189,1769693443575,-150.0,0.00017589,2]
[403959191,1769693443584,-150.0,0.00017589,2]
[403959193,1769693443593,-4286.0,0.00017589,2]
[403959195,1769693443602,-250.45,0.00017592,2]
[403959197,1769693443613,-290.39862941,0.00017593,2]
[403959199,1769693443622,-1800.0,0.000176,6]
[403959201,1769693443631,-250.28,0.00017614,2]
[403959203,1769693443640,-1277.59,0.00017616,2]
[403959205,1769693443649,-2000.0,0.00017616,2]
[403959207,1769693443658,-1796.55427389,0.00017616,2]
[403959209,1769693443668,-9890.97262948,0.00017632,2]
[403959210,1769693443678,-1660.17763539,0.00017632,2]
[403959211,1769693443686,-1100.94,0.00017635,2]
[403959212,1769693443695,-150.0,0.00017639,2]
[403959213,1769693443705,-176.88485057,0.00017639,2]
[403959214,1769693443714,-547.0,0.00017639,2]
[403959215,1769693443723,-500.0,0.00017639,2]
[403959216,1769693443732,-2986.73035102,0.0001764,2]
[403959217,1769693443741,-150.0,0.00017644,2]
[403959218,1769693443750,-150.0,0.00017644,2]
[403959219,1769693443759,-150.0,0.00017644,2]
[403959220,1769693443768,-500.0,0.00017644,2]
[403959221,1769693443777,-150.0,0.00017644,2]
[403959222,1769693443786,-150.0,0.00017644,2]
[403959223,1769693443795,-209.0686946,0.00017644,2]
[403959224,1769693443804,-150.0,0.00017644,2]
[403959225,1769693443813,-150.0,0.00017644,2]
[403959226,1769693443822,-150.0,0.00017644,2]
[403959227,1769693443831,-500.0,0.00017644,2]
[403959228,1769693443841,-150.0,0.00017644,2]
[403959229,1769693443850,-500.0,0.00017644,2]
[403959230,1769693443859,-500.0,0.00017644,2]
[403959231,1769693443869,-204.59716346,0.00017644,2]
[403959232,1769693443879,-153.57030056,0.00017644,2]
[403959233,1769693443888,-153.98209537,0.00017644,2]
[403959234,1769693443897,-151.0,0.00017646,2]
[403959235,1769693443906,-885.86649465,0.00017646,2]
[403959236,1769693443916,-181.08010149,0.00017646,2]
[403959237,1769693443925,-217.15233878,0.00017646,2]
[403959238,1769693443934,-301.1433787,0.00017648,2]
[403959239,1769693443945,-4286.0,0.00017649,2]
[403959241,1769693443954,-521.25,0.00017655,2]
[403959242,1769693443963,-4286.0,0.00017659,2]
[403959243,1769693443971,-4286.0,0.00017665,2]
[403959244,1769693443980,-4286.0,0.00017687,2]
[403959245,1769693443989,-1100.94,0.00017689,2]
[403959246,1769693443998,-150.0,0.00017694,2]
[403959247,1769693444007,-547.0,0.00017694,2]
[403959248,1769693444016,-500.0,0.00017694,2]
[403959249,1769693444025,-4523.73113579,0.00017696,2]
[403959250,1769693444034,-150.0,0.00017699,2]
[403959251,1769693444043,-200.0,0.00017699,2]
[403959253,1769693444053,-200.0,0.00017699,2]
[403959255,1769693444062,-200.0,0.00017699,2]
[403959256,1769693444071,-150.0,0.00017699,2]
[403959257,1769693444080,-150.0,0.00017699,2]
[403959258,1769693444089,-150.0,0.00017699,2]
[403959259,1769693444098,-200.0,0.00017699,2]
[403959260,1769693444106,-210.58495548,0.00017699,2]
[403959261,1769693444115,-500.0,0.00017699,2]
[403959262,1769693444124,-259.23494568,0.00017699,2]
[403959263,1769693444133,-1800.0,0.000177,6]
[403959264,1769693444142,-33270.6958,0.00017703,2]
[403959265,1769693444151,-1000.0,0.00017703,2]
[403959266,1769693444161,-10000.0,0.00017703,2]
[403959267,1769693444170,-25000.0,0.00017724,3]
[403959268,1769693444179,-25000.0,0.00017733,3]
[403959269,1769693444189,-4286.0,0.00017736,2]
[403959270,1769693444198,-25000.0,0.00017742,3]
[403959271,1769693444208,-1100.94,0.00017742,2]
[403959272,1769693444217,-382.0,0.00017746,2]
[403959273,1769693444227,-203.50697383,0.00017748,2]
[403959274,1769693444240,-547.0,0.00017748,2]
[403959275,1769693444249,-500.0,0.00017748,2]
[403959276,1769693444258,-25000.0,0.0001775,3]
[403959277,1769693444267,-382.0,0.00017751,2]
[403959278,1769693444276,-150.0,0.00017753,2]
[403959279,1769693444286,-150.0,0.00017753,2]
[403959281,1769693444295,-150.0,0.00017753,2]
[403959282,1769693444305,-150.0,0.00017753,2]
[403959283,1769693444314,-382.0,0.00017758,2]
[403959284,1769693444323,-536.64,0.00017758,2]
[403959285,1769693444332,-25000.0,0.00017759,3]
[403959286,1769693444341,-382.0,0.00017767,2]
[403959287,1769693444350,-25000.0,0.00017768,3]
[403959288,1769693444360,-322.0,0.00017769,2]
[403959289,1769693444369,-25000.0,0.00017777,3]
[403959290,1769693444378,-382.0,0.00017779,2]
[403959291,1769693444387,-25000.0,0.00017786,3]
[403959292,1769693444396,-25000.0,0.00017794,3]
[403959293,1769693444405,-2812.0,0.00017796,2]
[403959294,1769693444418,-382.0,0.00017799,2]
[403959295,1769693444427,-4286.0,0.00017799,2]
[403959296,1769693444437,-1800.0,0.000178,6]
[403959297,1769693444446,-5090.946,0.00017802,2]
[403959298,1769693444456,-374.033,0.00017802,2]
[403959299,1769693444474,-500.0,0.00017803,2]
[403959300,1769693444483,-500.0,0.00017803,2]
[403959301,1769693444492,-500.0,0.00017803,2]
[403959302,1769693444501,-500.0,0.00017803,2]
[403959304,1769693444510,-500.0,0.00017803,2]
[403959306,1769693444519,-500.0,0.00017803,2]
[403959308,1769693444528,-500.0,0.00017803,2]
[403959310,1769693444537,-500.0,0.00017803,2]
[403959311,1769693444546,-500.0,0.00017803,2]
[403959313,1769693444555,-500.0,0.00017803,2]
[403959315,1769693444564,-500.0,0.00017803,2]
[403959317,1769693444573,-547.0,0.00017803,2]
[403959319,1769693444582,-500.0,0.00017803,2]
[403959320,1769693444591,-25000.0,0.00017803,3]
[403959321,1769693444600,-500.0,0.00017808,2]
[403959322,1769693444609,-150.0,0.00017808,2]
[403959323,1769693444618,-150.0,0.00017808,2]
[403959324,1769693444627,-150.0,0.00017808,2]
[403959325,1769693444636,-150.0,0.00017808,2]
[403959326,1769693444645,-25000.0,0.00017812,3]
[403959327,1769693444654,-1186.34768,0.0001782,2]
[403959328,1769693444663,-1186.34769,0.0001782,2]
[403959329,1769693444672,-25000.0,0.00017821,3]
[403959330,1769693444681,-382.0,0.00017823,2]
[403959331,1769693444691,-382.0,0.00017829,2]
[403959332,1769693444699,-536.64,0.00017829,2]
[403959333,1769693444708,-25000.0,0.0001783,3]
[403959334,1769693444717,-382.0,0.00017851,2]
[403959335,1769693444726,-547.0,0.00017858,2]
[403959336,1769693444735,-500.0,0.00017858,2]
[403959337,1769693444744,-1001.35373168,0.0001786,2]
[403959338,1769693444752,-500.0,0.00017863,2]
[403959339,1769693444762,-232.99894081,0.00017863,2]
[403959340,1769693444772,-250.0,0.00017863,2]
[403959341,1769693444782,-250.0,0.00017863,2]
[403959342,1769693444792,-250.0,0.00017863,2]
[403959343,1769693444801,-580.08,0.00017864,2]
[403959344,1769693444810,-25000.0,0.00017865,3]
[403959345,1769693444819,-382.0,0.00017867,2]
[403959346,1769693444828,-25000.0,0.00017874,3]
[403959347,1769693444837,-280.46362408,0.00017878,2]
[403959348,1769693444846,-25000.0,0.00017882,3]
[403959349,1769693444857,-21194.91362864,0.00017885,2]
[403959350,1769693444866,-1277.59,0.0001789,2]
[403959351,1769693444875,-521.25,0.00017891,2]
[403959352,1769693444885,-25000.0,0.00017891,3]
[403959353,1769693444896,-7996.0,0.00017898,2]
[403959354,1769693444905,-382.0,0.00017899,2]
[403959355,1769693444914,-195.26333699,0.000179,2]
[403959356,1769693444924,-25000.0,0.000179,3]
[403959357,1769693444934,-2120.0,0.000179,6]
[403959358,1769693444944,-516.00645892,0.000179,2]
[403959359,1769693444954,-1351.50820643,0.000179,2]
[403959360,1769693444963,-450.9177481,0.000179,2]
[403959361,1769693444972,-2000.0,0.000179,2]
[403959362,1769693444982,-2000.0,0.000179,2]
[403959363,1769693444991,-1000.0,0.000179,2]
[403959364,1769693444999,-1000.0,0.000179,2]
[403959365,1769693445009,-1000.0,0.000179,2]
[403959366,1769693445018,-1000.0,0.000179,2]
[403959367,1769693445029,-1000.0,0.000179,2]
[403959368,1769693445038,-403.09993694,0.000179,2]
[403959369,1769693445047,-24688.72420621,0.000179,3]
[403959370,1769693445057,-1004.53570081,0.000179,2]
[403959371,1769693445066,-9094.94033794,0.000179,2]
[403959372,1769693445075,-547.0,0.00017913,2]
[403959373,1769693445085,-500.0,0.00017913,2]
[403959374,1769693445094,-382.0,0.00017914,2]
[403959375,1769693445103,-166.97,0.00017914,2]
[403959376,1769693445112,-382.0,0.00017917,2]
[403959377,1769693445121,-500.0,0.00017918,2]
[403959378,1769693445132,-4286.0,0.00017919,2]
[403959379,1769693445143,-166.97,0.00017936,2]
[403959380,1769693445153,-382.0,0.00017947,2]
[403959381,1769693445162,-382.0,0.00017949,2]
[403959382,1769693445171,-166.97,0.00017959,2]
[403959383,1769693445181,-547.0,0.00017968,2]
[403959384,1769693445190,-500.0,0.00017968,2]
[403959385,1769693445199,-580.08,0.00017972,2]
[403959386,1769693445210,-500.0,0.00017972,2]
[403959387,1769693445219,-504.20951303,0.00017973,2]
[403959388,1769693445231,-500.0,0.00017973,2]
[403959389,1769693445240,-500.0,0.00017973,2]
[403959390,1769693445250,-500.0,0.00017973,2]
[403959391,1769693445259,-500.0,0.00017973,2]
[403959393,1769693445270,-500.0,0.00017973,2]
[403959395,1769693445279,-500.0,0.00017973,2]
[403959397,1769693445288,-500.0,0.00017973,2]
[403959399,1769693445297,-500.0,0.00017973,2]
[403959401,1769693445308,-500.0,0.00017973,2]
[403959403,1769693445317,-500.0,0.00017973,2]
[403959405,1769693445327,-500.0,0.00017973,2]
[403959407,1769693445336,-500.0,0.00017973,2]
[403959409,1769693445345,-500.0,0.00017973,2]
[403959411,1769693445354,-500.0,0.00017973,2]
[403959413,1769693445363,-500.0,0.00017973,2]
[403959415,1769693445373,-160.53394236,0.00017973,2]
[403959417,1769693445382,-515.88206341,0.00017973,2]
[403959419,1769693445392,-500.0,0.00017973,2]
[403959421,1769693445400,-158.05561362,0.00017973,2]
[403959423,1769693445410,-500.0,0.00017973,2]
[403959425,1769693445419,-500.0,0.00017973,2]
[403959428,1769693445429,-500.0,0.00017973,2]
[403959429,1769693445439,-500.0,0.00017973,2]
[403959432,1769693445449,-500.0,0.00017973,2]
[403959434,1769693445459,-500.0,0.00017973,2]
[403959436,1769693445468,-500.0,0.00017973,2]
[403959438,1769693445477,-500.0,0.00017973,2]
[403959440,1769693445487,-160.09303877,0.00017973,2]
[403959442,1769693445495,-500.0,0.00017973,2]
[403959444,1769693445504,-501.28378078,0.00017973,2]
[403959446,1769693445513,-558.2762163,0.00017973,2]
[403959448,1769693445523,-500.0,0.00017973,2]
[403959450,1769693445532,-500.0,0.00017973,2]
[403959452,1769693445544,-500.0,0.00017973,2]
[403959454,1769693445554,-502.44429427,0.00017973,2]
[403959456,1769693445562,-382.0,0.00017978,2]
[403959458,1769693445571,-153.32539,0.00017979,2]
[403959460,1769693445580,-580.08,0.00017981,2]
[403959462,1769693445590,-580.08,0.00017981,2]
[403959464,1769693445598,-580.08,0.00017981,2]
[403959466,1769693445607,-580.08,0.00017981,2]
[403959468,1769693445616,-580.08,0.00017981,2]
[403959470,1769693445625,-521.25,0.00017981,2]
[403959472,1769693445635,-521.25,0.00017981,2]
[403959474,1769693445644,-521.25,0.00017981,2]
[403959476,1769693445653,-521.25,0.00017981,2]
[403959478,1769693445663,-521.25,0.00017981,2]
[403959479,1769693445671,-521.25,0.00017981,2]
[403959480,1769693445681,-151.0,0.00017982,2]
[403959482,1769693445693,-500.0,0.00017982,2]
[403959484,1769693445702,-222.93137113,0.00017982,2]
[403959486,1769693445711,-536.64,0.00017984,2]
[403959488,1769693445720,-536.64,0.00017984,2]
[403959489,1769693445730,-536.64,0.00017984,2]
[403959490,1769693445739,-536.64,0.00017984,2]
[403959491,1769693445751,-536.64,0.00017984,2]
[403959492,1769693445761,-536.64,0.00017984,2]
[403959493,1769693445770,-536.64,0.00017984,2]
[403959495,1769693445782,-536.64,0.00017984,2]
[403959497,1769693445803,-536.68231824,0.00017984,2]
[403959499,1769693445822,-1050233.3903634,0.00017985,2]
[403959501,1769693445842,-1035.9734267,0.00017985,2]
[403959503,1769693445853,-234338.7445851,0.00017985,2]
[403959505,1769693445862,-52288.0416082,0.00017985,2]
[403959507,1769693445872,-3107.9202801,0.00017985,2]
[403959508,1769693445881,-160.168884,0.00017985,2]
[403959509,1769693445890,-151.0,0.00017985,2]
[403959510,1769693445899,-151.0,0.00017985,2]
[403959511,1769693445908,-151.0,0.00017985,2]
[403959512,1769693445918,-1003.55663207,0.0001799,2]
[403959513,1769693445927,-191540.65544237,0.0001799,3]
[403959514,1769693445936,-29216.83021418,0.0001799,2]
[403959515,1769693445945,-16826.8720073,0.00017996,2]
[403959516,1769693445954,-151.0,0.00017997,2]
[403959517,1769693445964,-500.0,0.00017999,2]
[403959518,1769693445974,-500.0,0.00017999,2]
[403959519,1769693445982,-500.0,0.00017999,2]
[403959520,1769693445991,-500.0,0.00017999,2]
[403959521,1769693446001,-500.0,0.00017999,2]
[403959522,1769693446010,-507.77443347,0.00017999,2]
[403959523,1769693446019,-500.0,0.00017999,2]
[403959524,1769693446028,-500.0,0.00017999,2]
[403959525,1769693446037,-572.92100435,0.00017999,2]
[403959526,1769693446046,-666.0,0.00017999,2]
[403959527,1769693446055,-500.0,0.00017999,2]
[403959528,1769693446064,-514.83889524,0.00017999,2]
[403959529,1769693446073,-580.08,0.00017999,2]
[403959530,1769693446082,-580.08,0.00017999,2]
[403959531,1769693446091,-580.08,0.00017999,2]
[403959532,1769693446099,-580.08,0.00017999,2]
[403959533,1769693446108,-580.08,0.00017999,2]
[403959534,1769693446117,-580.08,0.00017999,2]
[403959535,1769693446126,-580.08,0.00017999,2]
[403959536,1769693446135,-580.08,0.00017999,2]
[403959537,1769693446144,-580.08,0.00017999,2]
[403959538,1769693446153,-580.08,0.00017999,2]
[403959539,1769693446162,-580.08,0.00017999,2]
[403959540,1769693446171,-580.08,0.00017999,2]
[403959541,1769693446181,-580.08,0.00017999,2]
[403959542,1769693446190,-580.08,0.00017999,2]
[403959543,1769693446199,-580.2,0.00017999,2]
[403959544,1769693446208,-521.25,0.00017999,2]
[403959545,1769693446217,-521.25,0.00017999,2]
[403959546,1769693446227,-300.0,0.00017999,2]
[403959547,1769693446239,-521.25,0.00017999,2]
[403959548,1769693446247,-521.25,0.00017999,2]
[403959549,1769693446257,-521.25,0.00017999,2]
[403959550,1769693446267,-521.25,0.00017999,2]
[403959551,1769693446276,-521.25,0.00017999,2]
[403959552,1769693446285,-521.27838547,0.00017999,2]
[403959553,1769693446294,-300.0,0.00017999,2]
[403959554,1769693446304,-666.0,0.00017999,2]
[403959555,1769693446314,-500.0,0.00017999,2]
[403959556,1769693446323,-500.0,0.00017999,2]
[403959557,1769693446332,-542.58663084,0.00017999,2]
[403959558,1769693446341,-13998.35686924,0.00017999,2]
[403959559,1769693446350,-500.0,0.00017999,2]
[403959560,1769693446359,-500.0,0.00017999,2]
[403959561,1769693446368,-500.0,0.00017999,2]
[403959562,1769693446377,-500.0,0.00017999,2]
[403959563,1769693446386,-500.0,0.00017999,2]
[403959564,1769693446395,-500.0,0.00017999,2]
[403959565,1769693446405,-500.0,0.00017999,2]
[403959566,1769693446414,-500.0,0.00017999,2]
[403959567,1769693446424,-500.0,0.00017999,2]
[403959568,1769693446438,-500.0,0.00017999,2]
[403959569,1769693446448,-500.0,0.00017999,2]
[403959570,1769693446458,-500.0,0.00017999,2]
[403959571,1769693446466,-500.0,0.00017999,2]
[403959572,1769693446475,-500.0,0.00017999,2]
[403959573,1769693446485,-500.0,0.00017999,2]
[403959574,1769693446494,-500.0,0.00017999,2]
[403959575,1769693446503,-500.0,0.00017999,2]
[403959576,1769693446513,-500.0,0.00017999,2]
[403959577,1769693446521,-500.0,0.00017999,2]
[403959578,1769693446531,-500.0,0.00017999,2]
[403959579,1769693446539,-647.66859598,0.00017999,2]
[403959580,1769693446549,-500.0,0.00017999,2]
[403959581,1769693446558,-500.0,0.00017999,2]
[403959582,1769693446568,-500.0,0.00017999,2]
[403959583,1769693446577,-500.0,0.00017999,2]
[403959584,1769693446587,-500.0,0.00017999,2]
[403959585,1769693446596,-500.0,0.00017999,2]
[403959586,1769693446605,-500.0,0.00017999,2]
[403959587,1769693446615,-500.0,0.00017999,2]
[403959588,1769693446624,-500.0,0.00017999,2]
[403959589,1769693446633,-345.84331997,0.00017999,2]
[403959590,1769693446642,-500.0,0.00017999,2]
[403959591,1769693446651,-500.0,0.00017999,2]
[403959592,1769693446661,-500.0,0.00017999,2]
[403959593,1769693446670,-500.0,0.00017999,2]
[403959594,1769693446679,-500.0,0.00017999,2]
[403959595,1769693446689,-500.0,0.00017999,2]
[403959596,1769693446698,-500.0,0.00017999,2]
[403959597,1769693446707,-161.45556103,0.00017999,2]
[403959598,1769693446716,-12037.49230273,0.00017999,2]
[403959599,1769693446725,-228.39138238,0.00017999,2]
[403959600,1769693446734,-300.0,0.00017999,2]
[403959601,1769693446745,-666.0,0.00017999,2]
[403959602,1769693446755,-151.0,0.00017999,2]
[403959603,1769693446764,-280.34589968,0.00017999,2]
[403959604,1769693446773,-500.0,0.00017999,2]
[403959605,1769693446782,-500.0,0.00017999,2]
[403959606,1769693446791,-359188.55241539,0.00018,2]
[403959607,1769693446801,-151.70764985,0.00018,2]
[403959608,1769693446811,-114195.54222308,0.00018,2]
[403959609,1769693446820,-98185.03270001,0.00018,2]
[403959610,1769693447515,-999.0,0.00018,2]
[403959611,1769693448183,-151.0,0.00015509,2]
[403959612,1769693448193,-2230114.39604838,0.00018,2]
[403959613,1769693450127,-324.02907155,0.000179,3]
[403959614,1769693450137,-151.0,0.00017985,2]
[403959615,1769693450146,-151.0,0.00017985,2]
[403959616,1769693450155,-561.395645,0.00018,2]
[403959617,1769693450180,-432534.54809065,0.00018,2]
[403959618,1769693450192,-4768.759158,0.00018,2]
[403959619,1769693450565,-3639.83829568,0.00018,2]
[403959620,1769693450817,-2594.22630514,0.00018,2]
[403959621,1769693450835,-309.25352553,0.00018,2]
[403959622,1769693450923,-676.87939562,0.00018,2]
[403959623,1769693450945,-2552.77131513,0.00018,2]
[403959726,1769693855304,2960.96832291,0.00012988,2]
[403959727,1769693855325,3292.46167709,0.00012988,2]
[403959828,1769694545104,-200.0,0.0001458,2]
[403959829,1769694545124,-385.92736429,0.00014716,2]
[403959830,1769694545144,-250.0,0.00014853,2]
[403959849,1769694631538,-275.0,0.0001502,2]
[403959850,1769694631547,-272.77308168,0.0001502,2]
[403959851,1769694631650,-60.78207202,0.0001502,2]
[403959852,1769694631660,-179.02489949,0.00015126,2]
[403959853,1769694631671,-195.0,0.00015132,2]
[403959854,1769694631680,-296.58158042,0.00015138,2]
[403959867,1769694637656,-165.6567796,0.00015096,2]
[403959868,1769694637667,-3.41841958,0.00015138,2]
[403959869,1769694637676,-195.0,0.00015151,2]
[403959870,1769694637685,-600.0,0.00015196,2]
[403959871,1769694637697,-179.02489949,0.00015196,2]
[403959872,1769694637706,-500.0,0.00015252,2]
[403959873,1769694637715,-300.0,0.00015259,2]
[403959874,1769694637724,-1200.0,0.00015259,2]
[403959875,1769694637733,-300.0,0.0001526,2]
[403959876,1769694637742,-263.0,0.0001526,2]
[403959877,1769694637751,-300.0,0.0001526,2]
[403959878,1769694637761,-300.0,0.0001526,2]
[403959879,1769694637770,-500.0,0.00015261,2]
[403959880,1769694637779,-500.0,0.00015261,2]
[403959881,1769694637788,-572.92100435,0.00015261,2]
[403959882,1769694637797,-500.0,0.00015261,2]
[403959883,1769694637807,-514.83889524,0.00015261,2]
[403959884,1769694637816,-500.0,0.00015261,2]
[403959885,1769694637826,-500.0,0.00015261,2]
[403959886,1769694637834,-500.0,0.00015261,2]
[403959887,1769694637842,-542.58663084,0.00015261,2]
[403959888,1769694637850,-500.0,0.00015261,2]
[403959889,1769694637860,-500.0,0.00015261,2]
[403959890,1769694637868,-500.0,0.00015261,2]
[403959891,1769694637878,-500.0,0.00015261,2]
[403959893,1769694637888,-500.0,0.00015261,2]
[403959895,1769694637896,-500.0,0.00015261,2]
[403959896,1769694637904,-500.0,0.00015261,2]
[403959897,1769694637912,-500.0,0.00015261,2]
[403959898,1769694637920,-500.0,0.00015261,2]
[403959899,1769694637929,-500.0,0.00015261,2]
[403959900,1769694637937,-500.0,0.00015261,2]
[403959901,1769694637945,-500.0,0.00015261,2]
[403959902,1769694637953,-500.0,0.00015261,2]
[403959903,1769694637961,-500.0,0.00015261,2]
[403959904,1769694637968,-500.0,0.00015261,2]
[403959905,1769694637976,-500.0,0.00015261,2]
[403959906,1769694637984,-500.0,0.00015261,2]
[403959907,1769694637993,-500.0,0.00015261,2]
[403959909,1769694638000,-500.0,0.00015261,2]
[403959910,1769694638009,-500.0,0.00015261,2]
[403959912,1769694638018,-500.0,0.00015261,2]
[403959914,1769694638028,-500.0,0.00015261,2]
[403959916,1769694638038,-500.0,0.00015261,2]
[403959918,1769694638048,-500.0,0.00015261,2]
[403959920,1769694638056,-500.0,0.00015261,2]
[403959922,1769694638066,-500.0,0.00015261,2]
[403959924,1769694638075,-500.0,0.00015261,2]
[403959926,1769694638084,-500.0,0.00015261,2]
[403959928,1769694638093,-500.0,0.00015261,2]
[403959930,1769694638102,-500.0,0.00015261,2]
[403959932,1769694638116,-500.0,0.00015261,2]
[403959934,1769694638125,-500.0,0.00015261,2]
[403959936,1769694638135,-500.0,0.00015261,2]
[403959938,1769694638144,-500.0,0.00015261,2]
[403959941,1769694638153,-500.0,0.00015261,2]
[403959943,1769694638163,-345.84331997,0.00015261,2]
[403959945,1769694638171,-500.0,0.00015261,2]
[403959946,1769694638181,-500.0,0.00015261,2]
[403959948,1769694638190,-161.45556103,0.00015261,2]
[403959951,1769694638200,-514.16801706,0.00015261,2]
[403959952,1769694638209,-531.74,0.00015261,2]
[403959955,1769694638219,-531.74,0.00015261,2]
[403959956,1769694638228,-531.74,0.00015261,2]
[403959959,1769694638237,-531.74,0.00015261,2]
[403959960,1769694638247,-531.74,0.00015261,2]
[403959962,1769694638256,-531.74,0.00015261,2]
[403959964,1769694638266,-531.74,0.00015261,2]
[403959966,1769694638275,-531.74,0.00015261,2]
[403959968,1769694638285,-531.74,0.00015261,2]
[403959970,1769694638294,-531.74,0.00015261,2]
[403959972,1769694638304,-501.96475106,0.00015261,2]
[403959974,1769694638313,-500.0,0.00015261,2]
[403959976,1769694638322,-500.0,0.00015261,2]
[403959978,1769694638331,-500.0,0.00015261,2]
[403959980,1769694638341,-500.0,0.00015261,2]
[403959982,1769694638350,-500.0,0.00015261,2]
[403959984,1769694638359,-500.0,0.00015261,2]
[403959986,1769694638368,-500.0,0.00015261,2]
[403959988,1769694638378,-500.0,0.00015261,2]
[403959990,1769694638387,-500.0,0.00015261,2]
[403959992,1769694638396,-500.0,0.00015261,2]
[403960011,1769694638523,-500.0,0.00015261,2]
[403960016,1769694638591,-500.0,0.00015261,2]
[403960018,1769694638601,-500.0,0.00015261,2]
[403960020,1769694638611,-500.0,0.00015261,2]
[403960022,1769694638624,-500.0,0.00015261,2]
[403960024,1769694638634,-500.0,0.00015261,2]
[403960026,1769694638643,-500.0,0.00015261,2]
[403960028,1769694638653,-500.0,0.00015261,2]
[403960030,1769694638665,-500.0,0.00015261,3]
[403960032,1769694638675,-500.0,0.00015261,4]
[403960034,1769694638685,-500.0,0.00015261,5]
[403960036,1769694638695,-500.0,0.00015261,6]
[403960038,1769694638704,-500.0,0.00015261,7]
[403960040,1769694638713,-500.0,0.00015261,8]
[403960042,1769694638723,-500.0,0.00015261,9]
[403960044,1769694638732,-500.0,0.00015261,10]
[403960046,1769694638742,-500.0,0.00015261,11]
[403960048,1769694638752,-500.0,0.00015261,2]